[Event "XX Sants Open 2018"]
[Site "Cotxeres de Sants"]
[Date "2018.08.23"]
[Round "7"]
[White "Perez Garcia, Jose Miguel"]
[Black "Gutierrez Palomino, Albert"]
[Result "1/2-1/2"]
[ECO "C07"]
[WhiteElo "1910"]
[BlackElo "1912"]
[Annotator "NA RC"]
[PlyCount "174"]
[EventDate "2018.08.17"]
[EventType "swiss"]
[EventCountry "ESP"]
[SourceTitle "playchess.com"]
[Source "ChessBase"]
[SourceQuality "1"]
[TimeControl "40/5400+30:1800+30"]

1. e4 e6 2. d4 d5 3. Nd2 c5 4. exd5 Qxd5 5. dxc5 Bxc5 6. Ngf3 Nf6 7. Bc4 Qd6 8. O-O O-O 9. Nb3 {C07: French Tarrasch: 3...c5, 4 Ngf3 and 4 exd5 Qxd5} Qxd1 10. Rxd1 Bb6 (10... Be7 11. Nbd4 Nbd7 12. Bf4 Nb6 13. Bb3 Bd7 14. a4 Nbd5 15. Bg3 Rfd8 {½-½ (32) Rogic,D (2571)-Prusikin,M (2545) Austria 2012}) 11. Re1 Nc6 12. Bf4 Nb4 $146 ({Predecessor:} 12... a6 13. c3 Ba7 14. Rad1 b5 15. Bd3 Bb7 16. Be3 Bxe3 17. Rxe3 {½-½ (62) Patriki,A (1039)-Koukouraki,H (1201) Porto Rio 2016}) 13. Re2 Nbd5 14. Bg3 Bd7 15. Ne5 Ba4 16. c3 Rac8 17. Rd1 Rfd8 18. Ree1 h6 19. Be2 Ne4 20. Bh5 Nd6 21. Bg4 Nf5 22. Bf3 Nxg3 23. hxg3 Bc7 24. Nd3 b6 25. Ndc1 Nf6 26. Rd4 Rxd4 27. Nxd4 Rd8 28. b3 Be8 29. Rd1 Kf8 30. Kf1 Nd5 31. Rd3 a6 32. Nc2 Ke7 33. Bxd5 Rxd5 34. Rxd5 exd5 35. Nb4 Kd6 36. Ne2 a5 37. Nc2 Bd8 38. Ncd4 g6 39. f3 Bf6 40. Kf2 Bd7 41. Ke3 Kc5 42. Kd3 b5 43. a3 Be5 44. b4+ axb4 45. axb4+ Kd6 46. f4 Bf6 47. Nc1 Bd8 48. Ncb3 Bb6 49. Na1 Ke7 50. Nac2 Kd6 51. Na3 Bxd4 52. Kxd4 f6 53. Nc2 h5 54. Ne3 Be6 55. Nf1 g5 56. Nd2 Bf5 57. fxg5 fxg5 58. Nf3 g4 59. Nd2 Bc2 60. Nf1 Be4 61. Ne3 Ke6 62. Kc5 Ke5 63. Kxb5 d4 64. Nc4+ $11 Kd5 (64... Ke6 65. Nd2 (65. cxd4 Kd5 $15) 65... Bxg2 66. Kc4 dxc3 67. Kxc3) 65. Nb6+ Ke5 66. cxd4+ $2 Kxd4 67. Nd7 (67. Nc8 $142 Bxg2 68. Nd6) 67... Bxg2 68. Nf6 Bf1+ 69. Ka5 h4 70. Nxg4 hxg3 71. b5 Bxb5 72. Kxb5 g2 73. Nh2 Ke3 74. Ng4+ Kf4 (74... Kf3 $142 75. Nf6 g1=Q 76. Kc4 Qg6 77. Nd5 Ke4 78. Nc3+ Ke5 79. Nb5 Qg4+ 80. Kc5 Qe4 81. Nc7 Qd4+ 82. Kb5 Qd7+ 83. Kb6 Qd6+ 84. Kb7 Qc5 85. Na6 Qb5+ 86. Kc7 Qxa6 87. Kb8 Qb5+ 88. Ka8 Kd6 89. Ka7 Kc7 90. Ka8 Qb8#) 75. Nf2 Kg3 76. Ne4+ Kf3 77. Ng5+ Kg4 78. Ne4 g1=Q 79. Nc5 Kf5 80. Kc4 Ke5 81. Nd3+ Kd6 82. Kc3 Qe3 83. Kc4 Qe4+ 84. Kc3 Kd5 85. Nb4+ Kc5 86. Nd3+ Qxd3+ $11 (86... Kb5 {mates} 87. Nb2 Qe1+ 88. Kc2 Qe2+ 89. Kc3 Qe5+ 90. Kc2 Qc5+ 91. Kd2 Qb4+ 92. Kc2 Qc5+ 93. Kd2 Qb4+ 94. Kc2 Qc5+) 87. Kxd3 Kd5 {Kd4+} 1/2-1/2

[Event "XX Sants Open 2018"]
[Site "Cotxeres de Sants"]
[Date "2018.08.23"]
[Round "7"]
[White "Martin Villanova, Jordi"]
[Black "Barragan Hernandez, Manel"]
[Result "0-1"]
[ECO "E67"]
[WhiteElo "1909"]
[BlackElo "1799"]
[Annotator "NA RC"]
[PlyCount "70"]
[EventDate "2018.08.17"]
[EventType "swiss"]
[EventCountry "ESP"]
[SourceTitle "playchess.com"]
[Source "ChessBase"]
[SourceQuality "1"]
[TimeControl "40/5400+30:1800+30"]

1. Nf3 Nf6 2. g3 g6 3. Bg2 Bg7 4. O-O O-O 5. c4 d6 6. d4 Nbd7 7. Nc3 e5 8. d5 a5 9. Qc2 Nc5 10. e4 Nfd7 11. Nh4 Nb6 12. Be3 Nxc4 13. Bxc5 dxc5 14. Nb5 Nd6 15. Qxc5 b6 16. Qxc7 Nxb5 17. Qxd8 Rxd8 18. Rfc1 Bd7 19. a4 Nd4 20. Rc7 Nb3 21. Ra3 Nc5 22. Rxc5 bxc5 23. Rc3 Bxa4 24. b3 Bd7 25. Rxc5 Rdc8 26. Rxc8+ Rxc8 27. f4 Rc1+ 28. Kf2 Rb1 29. Nf3 Rb2+ 30. Kg1 f6 31. fxe5 fxe5 32. Bf1 Rxb3 33. Nd2 Rb2 34. Nc4 Rb1 35. Nd2 Rd1 0-1

[Event "XX Sants Open 2018"]
[Site "Cotxeres de Sants"]
[Date "2018.08.23"]
[Round "7"]
[White "Martinez Torras, Pol"]
[Black "Vadillo, Torre Ismael"]
[Result "0-1"]
[ECO "A38"]
[WhiteElo "1642"]
[BlackElo "1567"]
[Annotator "NA RC"]
[PlyCount "106"]
[EventDate "2018.08.17"]
[EventType "swiss"]
[EventCountry "ESP"]
[SourceTitle "playchess.com"]
[Source "ChessBase"]
[SourceQuality "1"]
[TimeControl "40/5400+30:1800+30"]

1. c4 {[%emt 0:00:00]} c5 {[%emt 0:00:04]} 2. g3 {[%emt 0:00:00]} Nc6 {[%emt 0:01:25]} 3. Bg2 {[%emt 0:00:00]} g6 {[%emt 0:01:35]} 4. Nc3 {[%emt 0:00:17]} Bg7 {[%emt 0:00:44]} 5. Nf3 {[%emt 0:00:49]} Nf6 {[%emt 0:01:53]} 6. O-O {[%emt 0:01:05]} O-O {[%emt 0:00:35]} 7. Rb1 {[%emt 0:04:05]} d5 {[%emt 0:07:48]} 8. cxd5 {[%emt 0:11:31]} Nxd5 {[%emt 0:00:09]} 9. a3 {[%emt 0:03:21]} Rb8 {[%emt 0:08:05]} 10. Nxd5 {[%emt 0:02:58]} Qxd5 {[%emt 0:00:18]} 11. d3 {[%emt 0:03:13]} Qh5 {[%emt 0:05:08]} 12. b4 {[%emt 0:04:33]} cxb4 {[%emt 0:02:33]} 13. axb4 {[%emt 0:00:06]} a6 {[%emt 0:01:25]} 14. Be3 {[%emt 0:06:12]} Bg4 {[%emt 0:12:02]} 15. Re1 {[%emt 0:05:39]} Rfd8 {[%emt 0:09:28]} 16. Qb3 {[%emt 0:06:30]} Be6 {[%emt 0:04:11]} 17. Qa4 {[%emt 0:01:32]} Bd7 {[%emt 0:09:49]} 18. Qa2 {[%emt 0:07:29]} Be6 {[%emt 0:00:55]} 19. Qd2 {[%emt 0:00:47]} Ne5 {[%emt 0:09:29]} 20. Bf4 {[%emt 0:04:08]} Rbc8 {[%emt 0:02:13]} 21. Bxe5 {[%emt 0:01:27]} Bxe5 {[%emt 0:01:49]} 22. Nxe5 {[%emt 0:00:25]} Qxe5 {[%emt 0:01:49]} 23. Bxb7 {[%emt 0:00:30]} Rb8 {[%emt 0:01:53]} 24. Bxa6 {[%emt 0:00:19]} Bh3 {[%emt 0:01:17]} 25. Bc4 {[%emt 0:01:44]} Qd4 {[%emt 0:01:08]} 26. Qf4 {[%emt 0:01:37]} Qxf4 {[%emt 0:02:01]} 27. gxf4 {[%emt 0:00:06]} Rd6 {[%emt 0:01:17]} 28. Rb2 {[%emt 0:01:48]} Rbb6 {[%emt 0:01:37]} 29. f3 {[%emt 0:01:09]} Rf6 {[%emt 0:00:30]} 30. e3 {[%emt 0:00:20]} g5 {[%emt 0:00:53]} 31. Kf2 {[%emt 0:01:50]} gxf4 {[%emt 0:01:05]} 32. exf4 {[%emt 0:00:20]} Rg6 {[%emt 0:01:33]} 33. Rg1 {[%emt 0:00:23]} Rxg1 {[%emt 0:00:24]} 34. Kxg1 {[%emt 0:00:15]} Rg6+ {[%emt 0:00:03]} 35. Kf2 {[%emt 0:00:21]} Rg2+ {[%emt 0:00:02]} 36. Ke3 {[%emt 0:00:15]} Rxb2 {[%emt 0:00:12]} 37. b5 {[%emt 0:00:09]} Be6 {[%emt 0:00:18]} 38. Kd4 {[%emt 0:00:24]} Kf8 {[%emt 0:00:51]} 39. Kc5 {[%emt 0:01:00]} Rxh2 {[%emt 0:02:03]} 40. b6 {[%emt 0:00:00]} Bxc4 {[%emt 0:00:00]} 41. dxc4 {[%emt 0:01:48]} Rb2 {[%emt 0:01:54]} 42. Kc6 {[%emt 0:00:10]} h5 {[%emt 0:10:02]} 43. c5 {[%emt 0:00:27]} h4 {[%emt 0:01:47]} 44. b7 {[%emt 0:00:50]} h3 {[%emt 0:00:31]} 45. Kc7 {[%emt 0:00:07]} h2 {[%emt 0:01:09]} 46. c6 {[%emt 0:01:16]} h1=Q {[%emt 0:00:18]} 47. b8=Q+ {[%emt 0:01:46]} Rxb8 {[%emt 0:00:27]} 48. Kxb8 {[%emt 0:00:02]} Qb1+ {[%emt 0:01:35]} 49. Ka7 {[%emt 0:00:16]} Qa2+ {[%emt 0:00:49]} 50. Kb7 {[%emt 0:00:15]} Qd5 {[%emt 0:00:39]} 51. Kb6 {[%emt 0:00:08]} Ke8 {[%emt 0:06:00]} 52. Kc7 {[%emt 0:01:03]} e6 {[%emt 0:01:24]} 53. Kb6 {[%emt 0:00:18]} Kd8 {[%emt 0:00:49]} 0-1

[Event "XX Sants Open 2018"]
[Site "Cotxeres de Sants"]
[Date "2018.08.23"]
[Round "7"]
[White "Romero Funieles, Rafael de Jesus"]
[Black "Grasa Solanas, Oscar"]
[Result "0-1"]
[ECO "A00"]
[WhiteElo "1642"]
[BlackElo "1646"]
[Annotator "NA RC"]
[PlyCount "72"]
[EventDate "2018.08.17"]
[EventType "swiss"]
[EventCountry "ESP"]
[SourceTitle "playchess.com"]
[Source "ChessBase"]
[SourceQuality "1"]
[TimeControl "40/5400+30:1800+30"]

1. a3 e5 2. e3 d5 3. h3 Nf6 4. Nf3 Bd6 5. c4 e4 6. Nd4 c5 7. Nb5 O-O 8. Nxd6 Qxd6 9. Nc3 d4 10. exd4 cxd4 11. Nb5 Qd8 12. a4 Nc6 13. b3 a6 14. Na3 Bf5 15. g4 Bg6 16. Bg2 Nd7 17. Nc2 Nc5 18. O-O Nxb3 19. Rb1 Nxc1 20. Qxc1 Rb8 21. c5 f5 22. gxf5 Bxf5 23. Rb3 d3 24. Ne3 Nd4 25. Qb1 Nxb3 26. Qxb3+ Kh8 27. Nxf5 Rxf5 28. Bxe4 Rxc5 29. Qf7 Re5 30. Qf3 Qe7 31. Bxd3 Rf8 32. Qd1 Qh4 33. Be2 Qxh3 34. Bg4 Rg5 35. f3 Qg3+ 36. Kh1 Rf6 0-1

[Event "XX Sants Open 2018"]
[Site "Cotxeres de Sants"]
[Date "2018.08.23"]
[Round "7"]
[White "Martin Sanchez, Antoni"]
[Black "Buisan Arnau, Oriol"]
[Result "1/2-1/2"]
[ECO "D02"]
[WhiteElo "1535"]
[BlackElo "1599"]
[Annotator "NA"]
[PlyCount "98"]
[EventDate "2018.08.17"]
[EventType "swiss"]
[EventCountry "ESP"]
[SourceTitle "playchess.com"]
[Source "ChessBase"]
[SourceQuality "1"]
[TimeControl "40/5400+30:1800+30"]

1. d4 d5 2. Nf3 Nf6 3. Nbd2 Bf5 4. g3 c6 5. Bg2 e6 6. O-O Bd6 7. Re1 Nbd7 8. b3 O-O 9. Bb2 Re8 10. Ne5 h6 11. f4 c5 12. c3 cxd4 13. cxd4 Rc8 14. h3 Bc2 15. Qc1 Bxb3 16. Qb1 Bc2 17. Qc1 Be4 18. Qd1 Bxg2 19. Kxg2 Bb4 20. e3 Bxd2 21. Qxd2 Ne4 22. Qe2 Nxe5 23. fxe5 Qg5 24. g4 Qh4 25. Qf3 Rc2+ 26. Re2 Rxe2+ 27. Qxe2 Qg3+ 28. Kf1 Qxh3+ 29. Kg1 Rc8 30. Rc1 Rxc1+ 31. Bxc1 Qg3+ 32. Kf1 Qh4 33. Qg2 Qg3 34. Qe2 Qh3+ 35. Kg1 Ng3 36. Qf3 Qh4 37. Bd2 Ne4 38. Bb4 Qg3+ 39. Qxg3 Nxg3 40. Kf2 Ne4+ 41. Kf3 a6 42. a3 Kh7 43. Be7 Kg6 44. Bd8 h5 45. gxh5+ Kxh5 46. a4 g5 47. a5 g4+ 48. Kf4 Nc3 49. Be7 Ne2# 1/2-1/2

[Event "XX Sants Open 2018"]
[Site "Cotxeres de Sants"]
[Date "2018.08.24"]
[Round "8"]
[White "Vargas Drechsler, Carlos"]
[Black "Perez Garcia, Jose Miguel"]
[Result "1-0"]
[ECO "B23"]
[WhiteElo "1902"]
[BlackElo "1910"]
[Annotator "NA"]
[PlyCount "53"]
[EventDate "2018.08.17"]
[EventType "swiss"]
[EventCountry "ESP"]
[SourceTitle "playchess.com"]
[Source "ChessBase"]
[SourceQuality "1"]
[TimeControl "40/5400+30:1800+30"]

1. e4 c5 2. Nc3 e6 3. g3 a6 4. a4 b6 5. Bg2 Bb7 6. Nge2 d6 7. O-O Nd7 8. d3 Qc7 9. f4 Be7 10. f5 exf5 11. Rxf5 Ngf6 12. Bg5 O-O 13. Qd2 Rfe8 14. Raf1 Rab8 15. Nf4 Qd8 16. Bxf6 Nxf6 17. Nfd5 Bxd5 18. Nxd5 Nxd5 19. exd5 Rf8 20. Be4 g6 21. Qh6 f6 22. Rh5 Rf7 23. Bxg6 Bf8 24. Bxf7+ Kxf7 25. Qxh7+ Bg7 26. Re1 Rb7 27. Qe4 1-0

[Event "XX Sants Open 2018"]
[Site "Cotxeres de Sants"]
[Date "2018.08.24"]
[Round "8"]
[White "Alcala Gonzalez, Cesar"]
[Black "Magallanes, Gustavo Javier"]
[Result "0-1"]
[ECO "E21"]
[WhiteElo "1815"]
[BlackElo "1905"]
[Annotator "NA"]
[PlyCount "75"]
[EventDate "2018.08.17"]
[EventType "swiss"]
[EventCountry "ESP"]
[SourceTitle "playchess.com"]
[Source "ChessBase"]
[SourceQuality "1"]
[TimeControl "40/5400+30:1800+30"]

1. d4 Nf6 2. c4 e6 3. Nc3 Bb4 4. Nf3 Bxc3+ 5. bxc3 b6 6. Bg5 Bb7 7. e3 d6 8. Nd2 Nbd7 9. Qc2 h6 10. Bh4 Qe7 11. e4 e5 12. Bd3 g5 13. Bg3 Nh5 14. O-O-O O-O-O 15. Rhe1 Kb8 16. Nf1 Qf6 17. Be2 Nf4 18. Ne3 Rhe8 19. Bf3 Qg6 20. d5 Nc5 21. h3 Bc8 22. Bxf4 exf4 23. Nf1 f5 24. Nd2 h5 25. g3 fxg3 26. fxg3 fxe4 27. Nxe4 Bf5 28. Rd4 g4 29. hxg4 hxg4 30. Bg2 Re5 31. Re3 Rde8 32. Nxc5 Bxc2 33. Nd7+ Kc8 34. Nxe5 dxe5 35. Rd2 Qg5 36. Ree2 Bd3 37. Rf2 Bxc4 38. d6 0-1

[Event "XX Sants Open 2018"]
[Site "Cotxeres de Sants"]
[Date "2018.08.24"]
[Round "8"]
[White "Barragan Hernandez, Manel"]
[Black "Santos Ramos, Carlos"]
[Result "1/2-1/2"]
[ECO "B01"]
[WhiteElo "1799"]
[BlackElo "1825"]
[Annotator "NA"]
[PlyCount "99"]
[EventDate "2018.08.17"]
[EventType "swiss"]
[EventCountry "ESP"]
[SourceTitle "playchess.com"]
[Source "ChessBase"]
[SourceQuality "1"]
[TimeControl "40/5400+30:1800+30"]

1. e4 {[%emt 0:00:00]} d5 {[%emt 0:00:00]} 2. exd5 {[%emt 0:00:07]} Nf6 {[%emt 0:00:00]} 3. d4 {[%emt 0:04:25]} Nxd5 {[%emt 0:01:23]} 4. Nf3 {[%emt 0:01:21]} Bf5 {[%emt 0:00:35]} 5. Bd3 {[%emt 0:03:07]} Bxd3 {[%emt 0:01:56]} 6. Qxd3 {[%emt 0:00:03]} c6 {[%emt 0:01:37]} 7. O-O {[%emt 0:00:56]} e6 {[%emt 0:00:08]} 8. Re1 {[%emt 0:03:02]} Be7 {[%emt 0:00:12]} 9. c4 {[%emt 0:01:13]} Nf6 {[%emt 0:02:24]} 10. Nc3 {[%emt 0:01:48]} O-O {[%emt 0:00:17]} 11. Bf4 {[%emt 0:02:38]} Nbd7 {[%emt 0:00:26]} 12. Rad1 {[%emt 0:01:10]} Nh5 {[%emt 0:02:10]} 13. Be3 {[%emt 0:02:44]} Qc7 {[%emt 0:00:38]} 14. Ne4 {[%emt 0:01:46]} Ndf6 {[%emt 0:04:28]} 15. Nxf6+ {[%emt 0:06:44]} Nxf6 {[%emt 0:00:07]} 16. Bg5 {[%emt 0:01:25]} h6 {[%emt 0:00:09]} 17. Bh4 {[%emt 0:00:20]} Nh5 {[%emt 0:02:25]} 18. Bxe7 {[%emt 0:03:59]} Qxe7 {[%emt 0:00:09]} 19. Ne5 {[%emt 0:04:35]} Qg5 {[%emt 0:01:31]} 20. Qf3 {[%emt 0:01:39]} Nf6 {[%emt 0:02:45]} 21. b4 {[%emt 0:04:25]} Rad8 {[%emt 0:00:41]} 22. a4 {[%emt 0:05:31]} Nd7 {[%emt 0:00:30]} 23. b5 {[%emt 0:03:11]} c5 {[%emt 0:03:05]} 24. Qxb7 {[%emt 0:03:36]} Nxe5 {[%emt 0:00:14]} 25. dxe5 {[%emt 0:01:32]} Qxe5 {[%emt 0:03:15]} 26. Qxa7 {[%emt 0:01:25]} Rd2 {[%emt 0:08:24]} 27. Qa5 {[%emt 0:04:40]} Rxd1 28. Rxd1 Qe2 {[%emt 0:01:59]} 29. Rc1 {[%emt 0:03:35]} Qd3 {[%emt 0:02:38]} 30. Qc3 {[%emt 0:04:26]} Qd6 {[%emt 0:00:09]} 31. g3 {[%emt 0:01:29]} Rd8 {[%emt 0:00:19]} 32. a5 {[%emt 0:00:31]} f5 {[%emt 0:02:37]} 33. f4 {[%emt 0:07:23]} g5 {[%emt 0:00:11]} 34. Qe5 {[%emt 0:05:40]} Qd2 {[%emt 0:08:14]} 35. Qxe6+ {[%emt 0:01:10]} Kg7 {[%emt 0:00:24]} 36. Qe1 {[%emt 0:07:25]} Qd4+ {[%emt 0:02:11]} 37. Qf2 {[%emt 0:00:05]} Qe4 {[%emt 0:01:50]} 38. Qxc5 {[%emt 0:02:52]} Rd2 {[%emt 0:00:24]} 39. Qe5+ {[%emt 0:01:22]} Kg6 {[%emt 0:01:40]} 40. Qxe4 {[%emt 0:00:00]} fxe4 {[%emt 0:00:00]} 41. Re1 {[%emt 0:03:38]} Kf5 {[%emt 0:04:23]} 42. fxg5 {[%emt 0:00:31]} hxg5 {[%emt 0:00:36]} 43. a6 {[%emt 0:02:04]} Kg4 {[%emt 0:05:14]} 44. Rxe4+ {[%emt 0:00:51]} Kh3 {[%emt 0:01:31]} 45. a7 {[%emt 0:01:59]} Ra2 {[%emt 0:01:01]} 46. b6 {[%emt 0:00:10]} g4 {[%emt 0:00:09]} 47. b7 {[%emt 0:00:56]} Rxh2 {[%emt 0:08:38]} 48. b8=Q {[%emt 0:01:01]} Rh1+ {[%emt 0:00:34]} 49. Kf2 {[%emt 0:01:02]} Rh2+ {[%emt 0:01:15]} 50. Ke3 {[%emt 0:00:12]} 1/2-1/2

[Event "XX Sants Open 2018"]
[Site "Cotxeres de Sants"]
[Date "2018.08.24"]
[Round "8"]
[White "Rull Borrell, Salvador"]
[Black "Garrido Sanchez, Daniel"]
[Result "1/2-1/2"]
[ECO "B34"]
[WhiteElo "1647"]
[BlackElo "1560"]
[Annotator "NA"]
[PlyCount "50"]
[EventDate "2018.08.17"]
[EventType "swiss"]
[EventCountry "ESP"]
[SourceTitle "playchess.com"]
[Source "ChessBase"]
[SourceQuality "1"]
[TimeControl "40/5400+30:1800+30"]

1. e4 c5 2. Nf3 Nc6 3. d4 cxd4 4. Nxd4 Nf6 5. Nc3 e5 6. Ndb5 a6 7. Nd6+ Bxd6 8. Qxd6 Qe7 9. Qxe7+ Nxe7 10. Bd3 h6 11. f3 d5 12. exd5 Nexd5 13. Nxd5 Nxd5 14. Bd2 O-O 15. O-O Be6 16. Rfe1 Nf4 17. Bf1 Ng6 18. c4 f6 19. b4 Kf7 20. a4 Rfd8 21. Be3 Ne7 22. b5 Nf5 23. Bb6 Rd6 24. Bd3 Rb8 25. Be4 Ra8 1/2-1/2

[Event "XX Sants Open 2018"]
[Site "Cotxeres de Sants"]
[Date "2018.08.24"]
[Round "8"]
[White "Grasa Solanas, Oscar"]
[Black "Vadillo, Torre Ismael"]
[Result "0-1"]
[ECO "A25"]
[WhiteElo "1646"]
[BlackElo "1567"]
[Annotator "NA"]
[PlyCount "86"]
[EventDate "2018.08.17"]
[EventType "swiss"]
[EventCountry "ESP"]
[SourceTitle "playchess.com"]
[Source "ChessBase"]
[SourceQuality "1"]
[TimeControl "40/5400+30:1800+30"]

1. c4 e5 2. Nc3 g6 3. g3 Bg7 4. Bg2 Nc6 5. Nf3 Nge7 6. O-O O-O 7. d3 f5 8. Rb1 d5 9. cxd5 Nxd5 10. Qb3 Be6 11. Ng5 Nd4 12. Qd1 c6 13. Nxe6 Nxe6 14. Nxd5 cxd5 15. e3 e4 16. dxe4 dxe4 17. Qb3 Qe7 18. Bd2 Rfd8 19. Bb4 Qf7 20. Rfd1 Ng5 21. Qc2 Rac8 22. Rxd8+ Rxd8 23. Bf1 Qd7 24. Be2 Nf3+ 25. Kg2 Kh8 26. Rd1 Qc8 27. Rxd8+ Qxd8 28. b3 Ne5 29. Bb5 a6 30. Be2 h5 31. Ba3 Kh7 32. h4 Nd3 33. Kf1 Qa5 34. Bxd3 exd3 35. Qc5 Qd2 36. Bc1 Qe2+ 37. Kg2 Qxa2 38. Qb4 Qb1 39. Bd2 Qc2 40. Kf1 Qd1+ 41. Kg2 b6 42. Bc3 a5 43. Qc4 Qc2 0-1

[Event "XX Sants Open 2018"]
[Site "Cotxeres de Sants"]
[Date "2018.08.24"]
[Round "8"]
[White "Buisan Arnau, Oriol"]
[Black "Lujan Moreno, Royer Manuel"]
[Result "0-1"]
[ECO "C41"]
[WhiteElo "1599"]
[BlackElo "1477"]
[Annotator "NA"]
[PlyCount "54"]
[EventDate "2018.08.17"]
[EventType "swiss"]
[EventCountry "ESP"]
[SourceTitle "playchess.com"]
[Source "ChessBase"]
[SourceQuality "1"]
[TimeControl "40/5400+30:1800+30"]

1. e4 e5 {[%emt 0:09:46]} 2. Nf3 {[%emt 0:06:37]} d6 {[%emt 0:00:24]} 3. Bc4 {[%emt 0:01:07]} Be7 {[%emt 0:00:11]} 4. h3 {[%emt 0:01:19]} h6 {[%emt 0:00:01]} 5. d3 {[%emt 0:02:05]} Nf6 {[%emt 0:00:10]} 6. c3 {[%emt 0:03:55]} c5 {[%emt 0:00:40]} 7. Nbd2 {[%emt 0:02:03]} O-O {[%emt 0:00:10]} 8. Nf1 {[%emt 0:01:03]} Nh7 {[%emt 0:03:04]} 9. Ne3 {[%emt 0:01:37]} Be6 {[%emt 0:03:19]} 10. Nd5 {[%emt 0:04:19]} Nd7 {[%emt 0:01:50]} 11. O-O {[%emt 0:12:32]} Nb6 {[%emt 0:00:02]} 12. Nxe7+ {[%emt 0:00:03]} Qxe7 {[%emt 0:00:01]} 13. Bb3 {[%emt 0:03:20]} Kh8 {[%emt 0:01:32]} 14. Nh2 {[%emt 0:03:08]} Rad8 {[%emt 0:01:45]} 15. c4 {[%emt 0:09:28]} f5 {[%emt 0:00:08]} 16. exf5 {[%emt 0:02:03]} Rxf5 {[%emt 0:00:03]} 17. f4 {[%emt 0:04:47]} Rdf8 {[%emt 0:01:47]} 18. fxe5 {[%emt 0:04:59]} Rxf1+ {[%emt 0:00:25]} 19. Nxf1 {[%emt 0:00:02]} dxe5 {[%emt 0:01:08]} 20. Qe2 {[%emt 0:02:04]} Bd7 {[%emt 0:00:18]} 21. Bd2 {[%emt 0:02:49]} Bc6 {[%emt 0:00:08]} 22. Re1 {[%emt 0:02:01]} Nd7 {[%emt 0:00:29]} 23. Bc3 {[%emt 0:01:51]} Qg5 {[%emt 0:00:50]} 24. Nh2 {[%emt 0:05:34]} Qg3 {[%emt 0:02:25]} 25. Bc2 {[%emt 0:04:14]} Ng5 {[%emt 0:00:03]} 26. Qg4 {[%emt 0:10:14]} Qf2+ {[%emt 0:01:58]} 27. Kh1 {[%emt 0:00:10]} Qxc2 {[%emt 0:00:03]} 0-1

[Event "XX Sants Open 2018"]
[Site "Cotxeres de Sants"]
[Date "2018.08.25"]
[Round "9"]
[White "Magallanes, Gustavo Javier"]
[Black "Vinas Serrano, Jordi"]
[Result "1-0"]
[ECO "C00"]
[WhiteElo "1905"]
[BlackElo "1802"]
[Annotator "NA RC"]
[PlyCount "93"]
[EventDate "2018.08.17"]
[EventType "swiss"]
[EventCountry "ESP"]
[SourceTitle "playchess.com"]
[Source "ChessBase"]
[SourceQuality "1"]
[TimeControl "40/5400+30:1800+30"]

1. e4 e6 2. d3 d5 3. Qe2 Be7 4. Nf3 Nf6 5. g3 O-O 6. Bg2 c5 7. e5 Nfd7 8. O-O Nc6 9. c4 f6 10. exf6 Nxf6 11. Bf4 Bd6 12. Bxd6 Qxd6 13. Re1 Bd7 14. Nc3 Rae8 15. Ne5 Nd4 16. Qd1 Nc6 17. Nb5 Qe7 18. Nxc6 bxc6 19. Nc3 Qd6 20. Rc1 Re7 21. Qe2 Rfe8 22. Qe5 Qxe5 23. Rxe5 Bc8 24. Rce1 Nd7 25. R5e2 Kf7 26. Na4 Bb7 27. f4 g6 28. Bh3 Ba6 29. b3 Bb7 30. Bg2 Ba6 31. Bf3 Bb7 32. Kf2 Kf6 33. g4 g5 34. fxg5+ Kxg5 35. Kg3 h6 36. h4+ Kg6 37. Nc3 Nb6 38. Nd1 Kf6 39. Ne3 Nd7 40. Rf1 Kg6 41. Ng2 e5 42. h5+ Kh7 43. Nh4 Nf8 44. Nf5 Re6 45. Bg2 Kh8 46. Nh4 R6e7 47. Rxf8+ {Re6} 1-0

[Event "XX Sants Open 2018"]
[Site "Cotxeres de Sants"]
[Date "2018.08.25"]
[Round "9"]
[White "Zheng, Hong Wei"]
[Black "Barragan Hernandez, Manel"]
[Result "1-0"]
[ECO "A02"]
[WhiteElo "1876"]
[BlackElo "1799"]
[Annotator "NA RC"]
[PlyCount "71"]
[EventDate "2018.08.17"]
[EventType "swiss"]
[EventCountry "ESP"]
[SourceTitle "playchess.com"]
[Source "ChessBase"]
[SourceQuality "1"]
[TimeControl "40/5400+30:1800+30"]

1. f4 Nf6 2. Nf3 g6 3. d3 d5 4. g3 Bg7 5. Bg2 O-O 6. O-O c6 7. c3 Nbd7 8. Qc2 Qb6+ 9. Kh1 a5 10. e4 dxe4 11. dxe4 Nc5 12. Ne5 Ng4 13. Nxg4 Bxg4 14. Be3 Qb5 15. Na3 Qb6 16. Qf2 Nxe4 17. Bxb6 Nxf2+ 18. Rxf2 e5 19. Nc4 exf4 20. Rxf4 Be2 21. Bf1 Rfe8 22. Bxe2 Rxe2 23. Raf1 f5 24. a4 Ra6 25. Rd1 Rxb6 26. Nxb6 Rxb2 27. Nc4 Rc2 28. Nxa5 Rxc3 29. Nxb7 Be5 30. Rff1 Ra3 31. a5 c5 32. Rd7 Bc3 33. Rc1 c4 34. Rc7 Bxa5 35. Nxa5 Rxa5 36. R1xc4 1-0